bitfinex-derivatives/quotes_ETHF0:USTF0_20250330
["timestamp","ask_amount","ask_price","bid_price","bid_amount"]
[1743344632274,2.9369,1814.1,1814.0,1.10284]
[1743344634487,4.03968,1814.1,1814.0,1.10284]
[1743344634679,4.03968,1814.1,1813.9,1.10286]
[1743344634884,3.2078,1814.0,1813.9,1.10286]
[1743344635186,4.6598,1814.0,1813.9,1.10286]
[1743344636278,8.7848,1814.0,1813.9,1.10286]
[1743344638197,8.7848,1814.0,1813.9,1.1029]
[1743344644511,8.7848,1814.0,1813.7,1.4988]
[1743344644700,4.31078,1813.8,1813.6,1.10307]
[1743344644900,2.8696,1813.7,1813.6,1.10307]
[1743344645104,6.9936,1813.7,1813.6,1.10307]
[1743344645502,8.09663,1813.7,1813.5,1.1031]
[1743344645707,3.2078,1813.6,1813.4,0.00826331]
[1743344645902,1.427,1813.5,1813.4,1.11146331]
[1743344653714,3.2078,1814.0,1813.5,2.75787]
[1743344653908,7.3308,1814.0,1813.9,1.1029]
[1743344654310,7.3308,1814.0,1813.6,2.7961]
[1743344654606,3.2078,1813.8,1813.7,2.52598]
[1743344654812,3.2078,1813.8,1813.7,1.10298]
[1743344657415,4.3108,1813.8,1813.6,1.10307]
[1743344657610,4.8466,1813.7,1813.6,1.10307]
[1743344658213,3.2078,1813.8,1813.7,1.10302]
[1743344658412,7.3308,1813.8,1813.7,1.10302]
[1743344658910,7.3308,1813.8,1813.6,1.85084]
[1743344659115,7.3308,1813.8,1813.5,2.54261]
[1743344659311,0.7668,1813.7,1813.6,1.10308]
[1743344659816,0.7668,1813.7,1813.5,2.5426]
[1743344660007,3.2078,1813.6,1813.5,1.1031]
[1743344660207,4.31088,1813.6,1813.4,1.11142331]
[1743344660418,5.22514,1813.5,1813.4,0.00826331]
[1743344660612,5.22514,1813.5,1813.0,3.7598]
[1743344660613,5.22514,1813.5,1813.0,1.18203661]
[1743344660810,7.3298,1813.5,1813.1,1.5102]
[1743344661011,7.3298,1813.5,1813.3,1.10323]
[1743344661012,8.43295,1813.5,1813.3,1.10323]
[1743344661520,7.3298,1813.5,1813.4,1.1032]
[1743344664109,3.2078,1813.5,1813.4,1.1032]
[1743344664320,3.2078,1813.5,1813.4,2.5861]
[1743344664522,4.8888,1813.7,1813.6,1.10308]
[1743344664913,0.7668,1813.7,1813.6,1.10308]
[1743344665121,4.8888,1813.7,1813.6,1.10308]
[1743344665817,4.8888,1813.7,1813.2,3.2160633]
[1743344666013,5.99185,1813.7,1813.5,1.10313]
[1743344666915,3.2078,1813.6,1813.5,1.10313]
[1743344667222,5.99183,1813.7,1813.5,1.10313]
[1743344667922,4.8888,1813.7,1813.4,1.4565]
[1743344668420,4.8888,1813.7,1813.6,1.10308]
[1743344668817,4.121,1813.7,1813.6,1.10308]
[1743344669416,4.121,1813.7,1813.6,2.57808]
[1743344669722,58.2818,1813.8,1813.7,1.10302]
[1743344669923,58.2818,1813.8,1813.7,2.57802]
[1743344670617,59.6971,1813.8,1813.7,2.57802]
[1743344672919,8.7441,1813.8,1813.7,2.57802]
[1743344675026,9.84706,1813.8,1813.7,1.10302]
[1743344675220,8.7441,1813.8,1813.7,1.10302]
[1743344675723,8.7441,1813.8,1813.5,1.10312]
[1743344675922,5.76165,1813.7,1813.6,1.10308]
[1743344676329,4.6586,1813.7,1813.6,1.10308]
[1743344676727,5.76162,1813.7,1813.5,2.4984]
[1743344677031,1.4508,1813.6,1813.5,2.4984]
[1743344677233,1.4508,1813.6,1813.5,1.1031]
[1743344678724,3.2078,1813.7,1813.6,1.10308]
[1743344679125,4.6715,1813.7,1813.6,1.10308]
[1743344681520,0.7004,1814.0,1813.5,2.75774]
[1743344681721,0.00826331,1814.2,1814.1,1.10278]
[1743344685632,1.47556331,1814.2,1814.1,1.10278]
[1743344685926,4.68336331,1814.2,1814.1,1.10278]
[1743344686329,1.10281,1814.1,1813.8,1.10291]
[1743344686529,3.2078,1814.0,1813.5,3.48713]
[1743344686729,2.1713,1813.9,1813.8,1.1029]
[1743344687031,2.1713,1813.9,1813.7,1.10298]
[1743344687229,1.4673,1813.8,1813.7,1.10298]
[1743344688834,7.3248,1814.0,1813.8,1.10292]
[1743344689036,8.7726,1814.0,1813.9,1.1029]
[1743344689225,9.4885,1814.0,1813.9,1.1029]
[1743344690440,5.5648,1814.0,1813.9,1.1029]
[1743344692033,1.4478,1814.0,1813.9,3.3602]
[1743344692939,1.4478,1814.0,1813.9,1.1029]
[1743344696438,1.4478,1814.0,1813.7,1.484]
[1743344696650,8.058,1813.9,1813.8,1.10296]
[1743344699734,7.3228,1813.9,1813.8,1.10296]
[1743344700347,3.2078,1813.9,1813.8,1.10296]
[1743344702143,3.21606331,1814.2,1813.9,1.1029]
[1743344702347,3.21606331,1814.2,1814.0,2.54584]
[1743344702348,1.4656,1814.1,1814.0,2.54584]
[1743344704343,4.6734,1814.1,1813.6,0.7733]
[1743344704546,3.2078,1813.8,1813.5,0.7773]
[1743344704744,2.2205,1813.7,1813.6,1.10305]
[1743344708949,2.2205,1813.7,1813.4,1.10315]
[1743344709147,4.5904,1813.6,1813.2,2.0550633]
[1743344709449,1.3826,1813.5,1813.4,1.1032]
[1743344710953,2.1409,1813.5,1813.4,1.1032]
[1743344711857,6.2529,1813.5,1813.4,1.1032]
[1743344712742,1.10324,1813.4,1813.2,0.0082633]
[1743344712947,0.7443,1813.3,1813.2,1.1115633]
[1743344714246,3.26417,1813.3,1813.2,0.0082633]
[1743344714656,1.1034,1813.1,1812.9,1.10348]
[1743344714957,4.112,1813.0,1812.9,1.10348]
[1743344715255,6.2432,1813.0,1812.9,1.10348]
[1743344715449,9.451,1813.0,1812.8,1.10352]
[1743344715650,1.369,1812.9,1812.8,1.10352]
[1743344716756,4.12026331,1813.1,1813.0,1.10345]
[1743344716950,5.48926331,1813.1,1813.0,1.10345]
[1743344717143,6.30076331,1813.1,1812.8,0.799]
[1743344717349,1.369,1813.0,1812.9,1.10349]
[1743344717852,2.1556,1813.0,1812.9,1.10349]
[1743344718155,1.369,1813.0,1812.9,1.10349]
[1743344721753,1.43236331,1813.1,1813.0,1.10345]
[1743344722850,2.17816331,1813.1,1813.0,1.10345]
[1743344723652,1.43236331,1813.1,1813.0,1.10345]
[1743344724550,2.17816331,1813.1,1813.0,1.10345]
[1743344731163,1.43236331,1813.1,1813.0,1.10345]
[1743344731856,4.109,1813.5,1813.4,1.1032]
[1743344732054,1.403,1813.5,1813.4,1.1032]
[1743344732256,5.512,1813.5,1813.4,1.1032]
[1743344732461,6.2683,1813.5,1813.4,1.1032]
[1743344737763,6.2683,1813.5,1813.3,1.10322]
[1743344737968,4.6783,1813.4,1813.3,1.10322]
[1743344738159,4.6783,1813.4,1812.9,1.1117233]
[1743344738360,7.6232,1813.5,1812.9,0.0082633]
[1743344738361,3.2078,1813.2,1812.9,0.0082633]
[1743344738556,2.2929,1813.1,1813.0,1.10345]
[1743344740470,2.2929,1813.1,1812.9,0.0082633]
[1743344740671,1.4319,1813.0,1812.9,1.1117733]
[1743344746382,1.4319,1813.0,1812.9,4.3195733]
[1743344746581,4.107,1813.1,1813.0,1.10345]
[1743344746785,5.4879,1813.1,1813.0,2.56895]
[1743344747174,0.7971,1813.3,1813.0,1.4655]
[1743344747375,4.106,1813.5,1813.4,1.1032]
[1743344747576,5.4869,1813.5,1813.4,1.1032]
[1743344747785,6.284,1813.5,1813.4,1.1032]
[1743344748981,54.16906331,1813.6,1813.5,1.10314]
[1743344749284,4.67036331,1813.6,1813.5,1.10314]
[1743344749592,5.47226331,1813.6,1813.5,1.10314]
[1743344750286,1.10317,1813.5,1813.2,1.10328]
[1743344750482,4.105,1813.4,1813.3,1.10325]
[1743344751987,4.105,1813.4,1813.2,1.10328]
[1743344752182,2.2513,1813.3,1813.2,1.10328]
[1743344752387,2.2513,1813.3,1813.1,1.10334]
[1743344752583,2.2621,1813.2,1813.1,1.10334]
[1743344756391,2.2621,1813.2,1812.9,0.0082633]
[1743344756592,2.2621,1813.2,1812.9,1.1117433]
[1743344756593,5.5809,1813.1,1812.9,1.1117433]
[1743344756797,1.4779,1813.0,1812.9,0.0082633]
[1743344756992,5.78915,1813.0,1812.9,0.0082633]
[1743344757700,4.6857,1813.0,1812.9,0.0082633]
[1743344759696,4.6857,1813.0,1812.9,1.1117733]
[1743344760598,4.6857,1813.0,1812.9,0.0082633]
[1743344761203,5.78915,1813.0,1812.9,0.0082633]
[1743344761493,4.6857,1813.0,1812.9,0.0082633]
[1743344761887,5.78915,1813.0,1812.9,0.0082633]
[1743344762091,4.6857,1813.0,1812.9,0.0082633]
[1743344762296,4.6857,1813.0,1812.8,1.10352]
[1743344762297,4.6857,1813.0,1812.4,3.61487678]
[1743344762497,2.57244,1812.9,1812.6,1.10366]
[1743344762800,6.2786,1812.8,1812.6,1.10366]
[1743344763001,1.4689,1812.7,1812.6,1.10366]
[1743344763395,1.4689,1812.7,1812.5,2.47843]
[1743344763701,1.4689,1812.7,1812.6,1.10369]
[1743344764399,1.4689,1812.7,1812.4,1.3848]
[1743344764600,1.4689,1812.7,1811.7,2.8564604]
[1743344764601,1.10381,1812.5,1812.0,1.10402]
[1743344764797,3.2078,1812.1,1811.6,0.43647503]
[1743344765003,6.2047,1812.4,1812.2,1.10393]
[1743344765004,4.8181,1812.4,1812.2,1.10393]
[1743344765197,1.3866,1812.3,1812.2,1.10393]
[1743344766296,4.5944,1812.3,1812.0,1.85484]
[1743344766499,5.3097,1812.3,1812.1,1.10397]
[1743344766698,1.4968,1812.2,1812.1,1.10397]
[1743344767401,1.4968,1812.2,1812.0,1.85483]
[1743344767699,1.4968,1812.2,1812.1,1.104]
[1743344768105,1.4968,1812.2,1812.0,1.85482]
[1743344768494,7.3098,1812.1,1811.8,1.10414]
[1743344768700,2.2171,1812.0,1811.9,1.10412]
[1743344770000,1.4968,1812.0,1811.9,1.10412]
[1743344770903,7.3098,1812.1,1812.0,1.10406]
[1743344771499,8.7838,1812.1,1812.0,1.10406]
[1743344775206,8.7838,1812.1,1811.9,1.10409]
[1743344775405,1.4008,1812.0,1811.9,1.10409]
[1743344776907,1.4008,1812.0,1811.6,3.2078]
[1743344777407,1.4008,1812.0,1811.9,1.10412]
[1743344777613,2.50488,1812.0,1811.6,3.2078]
[1743344777810,4.31192,1811.9,1811.6,1.10426]
[1743344778005,4.816,1811.8,1811.7,1.10424]
[1743344778219,6.3316,1811.8,1811.7,1.10424]
[1743344778410,5.6166,1811.8,1811.7,1.10424]
[1743344778814,6.3316,1811.8,1811.7,1.10424]
[1743344779506,6.3316,1811.8,1811.2,4.101]
[1743344779507,1.10424,1811.7,1811.2,3.2078]
[1743344779813,4.692,1811.7,1811.3,0.7521]
[1743344780012,4.692,1811.7,1811.5,1.1043]
[1743344780213,1.4842,1811.6,1811.5,1.1043]
[1743344780409,1.4842,1811.6,1811.4,1.10438]
[1743344780610,4.101,1811.5,1811.4,1.10438]
[1743344780809,4.101,1811.5,1810.9,3.31372]
[1743344780810,7.3088,1811.5,1810.9,0.96618508]
[1743344781018,2.9515,1811.4,1811.3,1.10448]
[1743344781213,2.9515,1811.4,1811.1,1.5177]
[1743344781419,1.4842,1811.3,1811.2,1.10454]
[1743344781713,1.4842,1811.3,1811.2,1.53743656]
[1743344782307,4.692,1811.3,1811.1,1.10459]
[1743344782513,4.692,1811.3,1811.2,1.10454]
[1743344782722,1.4842,1811.3,1811.2,1.10454]
[1743344783125,1.4842,1811.3,1811.2,2.57764]
[1743344783818,0.00826331,1811.9,1811.2,14.50940998]
[1743344783819,3.21606331,1811.9,1811.2,14.50940998]
[1743344784018,1.3872,1811.8,1811.3,1.4731]
[1743344784220,1.3872,1811.8,1811.6,1.10427]
[1743344784519,1.3872,1811.8,1811.3,1.4731]
[1743344784719,1.3872,1811.8,1811.6,1.10425]
[1743344785518,3.2078,1811.7,1811.3,1.4731]
[1743344785725,1.4377,1811.6,1811.5,1.10436]
[1743344786316,2.1816,1811.6,1811.5,1.10436]
[1743344786511,2.8984,1811.6,1811.4,1.10437]
[1743344786716,1.4377,1811.5,1811.4,1.10442]
[1743344788025,3.2078,1811.7,1811.6,1.1043]
[1743344788323,7.3078,1811.7,1811.6,1.1043]
[1743344788627,7.3078,1811.7,1811.3,1.4731]
[1743344789015,7.3078,1811.7,1811.6,1.1043]
[1743344789418,8.7991,1811.7,1811.6,1.1043]
[1743344790022,8.7991,1811.7,1811.5,1.10432]
[1743344790222,7.3078,1811.7,1811.6,1.1043]
[1743344791825,7.3078,1811.7,1811.5,1.10432]
[1743344792021,0.749,1811.6,1811.3,1.4731]
[1743344792323,1.85332,1811.6,1811.2,3.2078]
[1743344792519,1.85332,1811.6,1811.3,1.10444]
[1743344792722,0.749,1811.6,1811.5,1.10436]
[1743344793121,0.749,1811.6,1811.4,1.10438]
[1743344793520,0.749,1811.6,1811.5,1.10436]
[1743344794230,0.749,1811.6,1811.4,1.10438]
[1743344794525,3.2078,1811.5,1811.3,1.4416]
[1743344794930,3.2078,1811.5,1811.3,1.10445]
[1743344795132,0.7115,1811.4,1811.3,1.10445]
[1743344795535,0.7115,1811.4,1811.1,1.4023]
[1743344795731,4.3123,1811.3,1810.8,0.5528]
[1743344795926,1.10461,1811.1,1810.9,1.10472]
[1743344796233,3.9193,1811.0,1810.5,3.62785299]
[1743344796428,3.9193,1811.0,1810.9,1.10473]
[1743344796630,0.7115,1811.0,1810.9,1.10473]
[1743344797130,6.4193,1811.0,1810.2,3.2078]
[1743344797431,7.3058,1810.9,1810.7,1.1048]
[1743344798131,7.3058,1810.9,1810.7,1.10484]
[1743344798633,7.3058,1810.9,1810.6,1.10487]
[1743344798829,3.2078,1810.7,1810.5,1.83313]
[1743344799026,3.2078,1810.7,1810.6,1.10491]
[1743344800431,5.20274,1810.9,1810.5,0.7282]
[1743344800432,3.2078,1810.9,1810.8,1.10478]
[1743344800742,8.8241,1810.9,1810.7,1.1048]
[1743344800935,1.5183,1810.8,1810.7,1.1048]
[1743344801435,1.5183,1810.8,1810.6,1.4775]
[1743344801931,2.2406,1810.8,1810.7,1.10485]
[1743344802137,1.5183,1810.8,1810.7,1.10485]
[1743344803630,1.5183,1810.8,1810.6,2.58237]
[1743344805139,3.2078,1810.7,1810.6,1.10487]
[1743344805638,3.2078,1810.7,1810.5,1.10493]
[1743344805841,2.1113,1810.6,1810.5,1.10493]
[1743344806638,2.8054,1810.6,1810.5,1.10493]
[1743344807032,6.9034,1810.6,1810.2,3.65826112]
[1743344807231,3.2078,1810.4,1810.2,1.3851]
[1743344807427,1.4014,1810.3,1810.2,2.49025]
[1743344807631,5.4994,1810.3,1810.2,1.10515]
[1743344808534,1.4014,1810.3,1810.2,1.10515]
[1743344808735,1.404,1810.6,1810.2,1.10515]
[1743344808736,5.4984,1810.5,1810.4,1.10503]
[1743344809136,5.4994,1810.5,1810.3,1.5162]
[1743344809326,1.4373,1810.4,1810.3,1.10506]
[1743344809730,1.4373,1810.4,1810.3,1.10509]
[1743344810539,3.2078,1810.5,1810.4,1.10503]
[1743344810839,7.3058,1810.7,1810.6,1.10491]
[1743344811036,5.5343,1810.8,1810.6,1.10491]
[1743344811436,1.4373,1810.7,1810.6,1.10491]
[1743344811639,4.6451,1810.7,1810.6,1.10491]
[1743344811842,3.2078,1810.7,1810.6,1.10491]
[1743344812245,3.2078,1810.7,1810.5,1.5162]
[1743344812246,4.6722,1810.7,1810.5,2.62115]
[1743344812442,1.4644,1810.6,1810.5,2.62115]
[1743344812643,2.204,1810.6,1810.5,2.62115]
[1743344812946,3.2078,1810.7,1810.6,1.10491]
[1743344813143,3.2078,1810.7,1810.6,2.48831]
[1743344813541,3.2078,1810.7,1810.4,1.4595]
[1743344813844,1.4644,1810.6,1810.5,1.10497]
[1743344814046,1.4644,1810.6,1810.5,2.48837]
[1743344814935,3.2078,1810.7,1810.6,1.10491]
[1743344815140,3.2078,1810.7,1810.6,2.54091]
[1743344816938,3.2078,1810.7,1810.6,1.10491]
[1743344817349,4.6406,1810.7,1810.6,1.10491]
[1743344817938,4.6406,1810.7,1810.0,1.87079075]
[1743344818139,3.2078,1810.5,1810.3,1.10509]
[1743344818342,1.4057,1810.4,1810.3,1.10509]
[1743344819046,4.096,1810.6,1810.5,1.10497]
[1743344819247,5.5017,1810.6,1810.5,1.10497]
[1743344820548,1.4057,1810.6,1810.5,1.10497]
[1743344820848,1.4057,1810.6,1810.5,2.55317]
[1743344822036,1.4057,1810.6,1810.1,3.7606]
[1743344822237,1.4204,1810.5,1810.2,1.424]
[1743344822444,1.3745,1810.4,1810.3,1.10509]
[1743344823746,5.4705,1810.6,1810.5,1.10493]
[1743344829545,1.3745,1810.6,1810.5,1.10493]
[1743344829751,8.7232,1810.9,1810.7,1.10481]
[1743344830056,1.4632,1810.8,1810.4,1.5001]
[1743344830353,4.31275,1810.6,1810.3,1.10506]
[1743344830654,4.31275,1810.6,1810.3,1.10509]
[1743344830655,7.36288,1810.5,1810.3,1.10509]
[1743344830853,1.4023,1810.4,1810.3,1.10509]
[1743344834645,2.50734,1810.4,1810.1,3.2078]
[1743344834847,2.50734,1810.4,1810.2,1.10514]
[1743344834848,4.6101,1810.4,1810.2,1.10514]
[1743344835054,1.3762,1810.3,1810.2,1.10514]
[1743344836255,1.3762,1810.3,1810.0,1.4357]
[1743344836757,1.3762,1810.3,1810.1,1.10518]
[1743344837154,1.3762,1810.3,1810.1,1.10517]
[1743344837562,1.10523,1810.1,1809.7,3.2078]
[1743344837759,8.0382,1810.2,1809.7,3.2078]
[1743344837760,2.169,1810.0,1809.9,1.10534]
[1743344838779,2.169,1810.0,1809.8,2.49055]
[1743344838972,1.4626,1809.9,1809.8,2.49055]
[1743344841066,6.66195,1809.9,1809.7,3.2078]
[1743344841266,0.742,1809.8,1809.7,3.2078]
[1743344841574,2.1994,1809.8,1809.7,3.2078]
[1743344842168,5.4072,1809.8,1809.4,1.4544]
[1743344842377,1.4574,1809.7,1809.6,1.10548]
[1743344844968,3.2078,1809.8,1809.7,1.10546]
[1743344845174,4.6479,1809.8,1809.7,1.10546]
[1743344845578,1.4401,1809.8,1809.7,2.58676]
[1743344848581,3.9142,1810.0,1809.9,1.10534]
[1743344848782,8.0072,1810.0,1809.9,1.10534]
[1743344849880,9.4361,1810.0,1809.8,2.51317]
[1743344850086,1.4289,1809.9,1809.7,1.10541]
[1743344850779,0.7593,1809.8,1809.7,1.10541]
[1743344853189,2.194,1809.8,1809.7,1.10541]
[1743344853583,1.4347,1809.8,1809.7,1.10541]
[1743344855789,1.4347,1809.8,1809.6,1.10548]
[1743344855991,0.7042,1809.7,1809.6,1.10548]
[1743344856785,1.4347,1809.8,1809.7,1.10546]
[1743344857388,1.4347,1809.8,1809.4,7.90976459]
[1743344857389,3.2078,1810.0,1809.9,1.10534]
[1743344857688,5.51638637,1810.1,1810.0,1.10528]
[1743344857894,1.42538637,1810.1,1810.0,1.10528]
[1743344860384,1.42538637,1810.1,1810.0,1.81648]
[1743344861994,0.00828637,1810.1,1810.0,1.81648]
[1743344864187,4.31247,1811.0,1810.3,1.10509]
[1743344864386,1.5047,1810.7,1810.6,1.10491]
[1743344866181,0.00828637,1810.8,1810.7,1.10485]
[1743344867187,3.2078,1811.2,1811.1,1.10461]
[1743344867392,54.2608,1811.4,1811.3,1.10448]
[1743344868489,54.2608,1811.4,1811.1,1.3769]
[1743344868490,54.2608,1811.4,1811.1,2.48148]
[1743344868692,1.4412,1811.3,1811.2,1.10454]
[1743344870088,54.2608,1811.4,1811.3,1.10448]
[1743344870693,3.2078,1811.4,1811.3,2.53218]
[1743344871095,0.00828637,1811.5,1811.4,1.10442]
[1743344871689,0.00828637,1811.5,1811.3,1.4277]
[1743344871889,0.00828637,1811.5,1811.4,1.10442]
[1743344872289,3.21608637,1811.5,1811.4,1.10442]
[1743344872592,3.21608637,1811.5,1811.1,1.4277]
[1743344872799,0.6868,1811.4,1811.3,1.10443]
[1743344873092,0.6868,1811.4,1811.3,1.10448]
[1743344876493,4.7728,1811.4,1811.2,1.10454]
[1743344876694,3.9232,1811.3,1811.2,1.10454]
[1743344877495,0.7154,1811.3,1811.2,1.10454]
[1743344877699,4.7728,1811.4,1811.3,1.10448]
[1743344877899,4.7728,1811.4,1811.3,2.58578]
[1743344878100,0.6868,1811.4,1811.3,2.58578]
[1743344879097,3.21608637,1811.5,1811.4,1.10442]
[1743344879294,3.93838637,1811.5,1811.4,1.10442]
[1743344879796,0.00828637,1811.5,1811.4,1.10442]
[1743344880201,0.70718637,1811.5,1811.4,1.10442]
[1743344881003,2.20998637,1811.5,1811.4,1.10442]
[1743344881803,1.51108637,1811.5,1811.4,1.10442]
[1743344883306,0.00828637,1811.5,1811.4,1.10442]
[1743344883509,1.40518637,1811.5,1811.4,1.10442]
[1743344884008,0.00828637,1811.5,1811.4,1.10442]
[1743344885608,0.73848637,1811.5,1811.4,1.10442]
[1743344887309,3.94628637,1811.5,1811.4,1.10442]
[1743344887611,4.68518637,1811.5,1811.4,1.10442]
[1743344887803,1.47738637,1811.5,1811.4,1.10442]
[1743344892308,0.00828637,1811.5,1811.4,1.10442]
[1743344895609,9.79708637,1811.5,1810.8,3.2078]
[1743344895809,1.10457,1811.2,1811.0,1.10463]
[1743344896104,2.0881,1811.1,1811.0,1.10463]
[1743344896310,5.2959,1811.1,1811.0,1.10463]
[1743344896506,5.2959,1811.1,1810.8,1.4332]
[1743344896707,2.0782,1811.0,1810.8,1.4332]
[1743344896910,2.0782,1811.0,1810.8,2.53799]
[1743344896911,1.3761,1810.9,1810.8,2.53799]
[1743344899513,3.9198,1811.1,1811.0,1.10467]
[1743344900112,3.2078,1811.1,1811.0,1.10467]
[1743344900318,3.2078,1811.1,1811.0,2.58137]
[1743344901821,4.5825,1811.1,1811.0,1.82177]
[1743344902018,4.5825,1811.1,1811.0,1.10467]
[1743344904623,0.00828637,1811.5,1811.4,1.10442]
[1743344905420,0.00828637,1811.5,1811.4,2.53212]
[1743344911034,0.00828637,1811.5,1811.4,5.73992]
[1743344912228,1e-08,1811.5,1811.4,12.7632982]
[1743344915732,1e-08,1811.5,1811.4,19.3392982]
[1743344915933,1e-08,1811.5,1811.4,19.8920982]
[1743344916232,1e-08,1811.5,1811.4,19.3392982]
[1743344916429,1e-08,1811.5,1811.4,19.8920982]
[1743344916626,1e-08,1811.5,1811.4,17.3920982]
[1743344917335,1e-08,1811.5,1811.4,13.3160982]
[1743344918837,1.3893,1812.0,1811.9,1.10412]
[1743344919029,3.2078,1812.3,1812.2,1.10393]
[1743344919729,4.6732,1812.3,1812.2,1.10393]
[1743344919929,1.4654,1812.3,1812.2,1.10393]
[1743344920440,4.61e-05,1812.4,1812.3,1.10387]
[1743344920730,4.61e-05,1812.4,1812.3,5.70447]
[1743344920937,4.61e-05,1812.4,1812.3,12.86463928]
[1743344927438,4.61e-05,1812.4,1812.3,1.10387]
[1743344929437,0.7393461,1812.4,1812.3,1.10387]
[1743344929636,1.4406461,1812.4,1812.3,1.10387]
[1743344935644,4.6484461,1812.4,1812.3,1.10387]
[1743344937754,1.4406461,1812.4,1812.3,1.10387]
[1743344937951,4.6484461,1812.4,1812.1,0.00828637]
[1743344938151,3.2078,1812.2,1812.1,0.00828637]
[1743344938455,3.2078,1812.2,1811.8,1.10413]
[1743344938657,4.607,1812.1,1811.5,6.40224314]
[1743344938851,4.07,1812.0,1811.9,1.10412]
[1743344939052,3.2078,1812.1,1812.0,1.10406]
[1743344939752,4.07,1812.2,1812.1,1.104]
[1743344941752,4.7593,1812.2,1812.1,1.104]
[1743344941954,0.6893,1812.2,1812.1,1.104]
[1743344942156,4.069,1812.3,1812.2,1.10393]
[1743344942352,4.61e-05,1812.4,1812.3,1.10387]
[1743344942353,0.6893461,1812.4,1812.3,1.10387]
[1743344943358,0.6893461,1812.4,1811.9,5.97632637]
[1743344943656,0.6893461,1812.4,1812.3,1.10387]
[1743344943862,3.8971461,1812.4,1812.3,1.10387]
[1743344947261,0.6893461,1812.4,1812.3,1.10387]
[1743344947561,3.8971461,1812.4,1812.3,1.10387]
[1743344950658,6.0221461,1812.4,1812.3,1.10387]
[1743344953867,4.5822461,1812.4,1812.3,2.62107]
[1743344954070,3.2078461,1812.4,1812.3,2.62107]
[1743344954564,4.61e-05,1812.4,1812.3,2.62107]
[1743344955462,4.61e-05,1812.4,1812.3,12.91066056]
[1743344956271,4.61e-05,1812.4,1812.3,5.82887]
[1743344956467,4.61e-05,1812.4,1812.3,4.31167]
[1743344956670,1.4547461,1812.4,1812.3,4.31167]
[1743344960074,1.4547461,1812.4,1812.3,1.10387]
[1743344962776,4.61e-05,1812.4,1812.3,1.10387]
[1743344962982,4.61e-05,1812.4,1812.3,2.54457]
[1743344969088,1.4081461,1812.4,1812.3,2.54457]
[1743344977494,4.61e-05,1812.4,1812.3,2.54457]
[1743344977696,0.6957,1812.7,1812.3,2.54457]
[1743344977697,0.7038,1812.8,1812.7,1.10363]
[1743344977896,2.1935,1812.8,1812.7,1.10363]
[1743344978797,3.2078,1813.4,1812.9,1.10351]
[1743344979003,4.06,1813.3,1813.2,1.10327]
[1743344979204,4.06828637,1813.3,1813.2,1.10327]
[1743344979596,4.06828637,1813.3,1813.1,1.10335]
[1743344979805,0.6857,1813.2,1813.1,1.10335]
[1743344979999,6.0383,1813.2,1813.1,1.10335]
[1743344980895,1.3863,1813.2,1813.1,1.10335]
[1743344981403,2.1147,1813.2,1813.1,1.10335]
[1743344993507,2.1147,1813.2,1813.0,1.11168637]
[1743344993813,5.4227,1813.1,1813.0,1.11173637]
[1743344994003,5.4227,1813.1,1813.0,0.00828637]
[1743344994211,9.4787,1813.1,1813.0,0.00828637]
[1743344997610,9.4787,1813.1,1813.0,1.11173637]
[1743344997815,6.2709,1813.1,1813.0,1.11173637]
[1743344998119,9.4787,1813.1,1813.0,1.11173637]
[1743345000216,9.4787,1813.1,1813.0,0.00828637]
[1743345001016,9.4787,1813.1,1813.0,1.11173637]
[1743345001917,1.10363,1812.7,1812.4,1.10377]
[1743345002113,1.10363,1812.7,1812.2,4.3117]
[1743345002114,0.7381,1812.6,1812.2,4.3117]
[1743345002321,7.2618,1812.5,1812.2,1.10391]
[1743345002518,1.4847,1812.4,1812.1,1.10395]
[1743345002815,3.2078,1812.2,1812.1,1.104]
[1743345003018,7.2618,1812.2,1812.1,0.00828637]
[1743345003212,2.76,1812.1,1811.1,0.552]
[1743345003420,3.2078,1811.6,1811.2,1.4857]
[1743345003612,1.4847,1811.5,1811.4,1.10436]
[1743345003920,4.054,1811.9,1811.7,1.10423]
[1743345004111,5.5387,1811.9,1811.5,2.9284]
[1743345004312,3.2078,1811.8,1811.6,0.00828637]
[1743345004513,1.4245,1811.7,1811.6,0.00828637]
[1743345004719,1.4245,1811.7,1811.6,1.11258637]
[1743345004923,1.4245,1811.7,1811.6,0.00828637]
[1743345005623,1.4245,1811.7,1811.6,1.11258637]
[1743345005924,1.4245,1811.7,1811.6,0.00828637]
[1743345006219,2.1134,1811.7,1811.6,0.00828637]
[1743345006414,2.8351,1811.7,1811.6,0.00828637]
[1743345007627,1.4245,1811.7,1811.6,1.11258637]
[1743345007926,1.4091,1812.2,1811.6,13.05524673]
[1743345008122,2.9019,1812.2,1812.1,1.104]
[1743345008518,0.00828637,1812.3,1812.1,1.104]
[1743345008519,0.00828637,1812.3,1812.2,1.10393]
[1743345008718,0.00828637,1812.3,1812.2,3.34123]
[1743345010228,0.00828637,1812.3,1812.2,4.05703]
[1743345014535,0.00828637,1812.3,1812.2,3.34123]
[1743345014727,0.00828637,1812.3,1811.8,2.76038]
[1743345014728,0.00828637,1812.3,1811.8,3.7598]
[1743345014935,7.2598,1812.2,1811.8,3.2078]
[1743345015124,2.8191,1812.1,1811.8,3.2078]
[1743345015331,2.8191,1812.1,1811.9,1.10412]
[1743345015621,2.8191,1812.1,1811.8,3.2078]
[1743345016021,2.8191,1812.1,1812.0,1.10406]
[1743345016220,2.8191,1812.1,1812.0,4.31186]
[1743345016733,1.3948,1812.1,1812.0,4.31186]
[1743345016931,4.06028637,1812.3,1812.2,1.10393]